Cogmind - Beta 13 X1 @@@ ROGUE MODE // 2023.12.09 @ 16:23:39 Player: Plexion Result: Self-destructed Performance ------------- Evolutions (3) 1500 Regions Visited (12) 2400 Robots Destroyed (103) 515 Value Destroyed (3968) 3968 Prototype IDs (27) 540 Alien Tech Used (0) 0 Bonus (3002) 3002 TOTAL SCORE: 11925 Bonus ------- High Alert Combat Kills 321 Follower Combat Kills 412 Entered Garrisons 600 Used RIF Installer 1500 Aligned with FarCom 300 Friendly Fire -131 Cogmind --------- Core Integrity 625/700 Matter 19/300 Energy 33/140 System Corruption 18% Temperature Cool (0) Movement Treading (246) Ox1 Location -7/Garrison Parts ------- > --- POWER (1) -------- Light Deuterium Engine > --- PROPULSION (4) --- Light Treads Armored Treads Armored Treads > --- UTILITY (6) ------ Improved Cooling System Huge Storage Unit Hacking Suite Relay Coupler [NC] (21) Relay Coupler [Sentry] (10) > --- WEAPON (2) ------- Shock Rifle Arc Projector > --- INVENTORY (25) --- Improved Heavy Treads Improved Cooling System Improved Cooling System Improved Light Armor Plating Improved Light Armor Plating Improved Light Armor Plating Shield Generator Shield Generator Hacking Suite Relay Coupler [NC] (21) Relay Coupler [Hunter] (23) Arc Projector XL Autogun Array Advanced Assault Cannon Mini Grenade Launcher Mini Grenade Launcher Remote Datajack Great Maul Peak State ------------ > --- POWER ------------ Micro Nuclear Core > --- PROPULSION ------- Light Treads Light Treads Armored Treads Armored Treads > --- UTILITY ---------- Improved Cooling System Huge Storage Unit Hardened Medium Armor Plating Improved Light Armor Plating Hacking Suite Relay Coupler [Sentry] > --- WEAPON ----------- Remote Datajack Great Maul > --- INVENTORY -------- Light Treads Light Treads Light Treads Light Treads Improved Cooling System Light Armor Plating Improved Light Armor Plating Improved Light Armor Plating Relay Coupler [NC] Relay Coupler [NC] Relay Coupler [NC] Relay Coupler [Sentry] Relay Coupler [Sentry] Relay Coupler [Hunter] Shock Rifle Shock Rifle XL Autogun Array Assault Cannon Mini Grenade Launcher Mini Grenade Launcher [Rating: 45] Favorites ----------- Power Micro Nuclear Core Engine Ion Engine Power Core Micro Nuclear Core Propulsion Light Treads Treads Light Treads Leg Aluminum Leg Utility Huge Storage Unit Device Improved Cooling System Storage Huge Storage Unit Processor Advanced Targeting Computer Hackware Relay Coupler [Sentry] Protection Improved Light Armor Plating Weapon Shock Rifle Energy Gun Shock Rifle Ballistic Gun Light Assault Rifle Ballistic Cannon Assault Cannon Launcher Grenade Launcher Special Weapon Remote Datajack Impact Weapon Great Maul Build | -11 -10 -10 -10 -9 -8 -8 -8 -8 -7 -7 -7 -7 ------- Run | Jun Mat Min Exi Min Mat Gar Mat Gar Fac Was Fac Gar Slots Evolved 6 | . . . . . 4 . . . 2 . . . Power . | . . . . . . . . . . . . . Propulsion 2 | . . . . . 2 . . . . . . . Utility 4 | . . . . . 2 . . . 2 . . . Weapon . | . . . . . . . . . . . . . Parts Attached 140 | 6 15 . 1 8 9 33 29 15 6 5 6 7 Power 10 | 1 . . . . 1 4 3 . . . 1 . Engine 3 | 1 . . . . 1 . . . . . 1 . Core 7 | . . . . . . 4 3 . . . . . Reactor . | . . . . . . . . . . . . . Propulsion 24 | 2 1 . . . 3 8 9 . . . . 1 Treads 18 | 2 1 . . . 3 2 9 . . . . 1 Leg 6 | . . . . . . 6 . . . . . . Wheel . | . . . . . . . . . . . . . Hover . | . . . . . . . . . . . . . Flight . | . . . . . . . . . . . . . Utility 39 | 1 4 . 1 2 3 4 8 7 4 3 1 1 Device 7 | . . . . 1 . . 4 . 2 . . . Storage 5 | 1 2 . 1 . . 1 . . . . . . Processor 3 | . 1 . . . 2 . . . . . . . Hackware 11 | . . . . . . 1 1 4 2 1 1 1 Protection 13 | . 1 . . 1 1 2 3 3 . 2 . . Artifact . | . . . . . . . . . . . . . Weapon 67 | 2 10 . . 6 2 17 9 8 2 2 4 5 Energy Gun 16 | . . . . . . 6 4 . 2 . 2 2 Energy Cannon . | . . . . . . . . . . . . . Ballistic Gun 14 | 2 5 . . 3 1 3 . . . . . . Ballistic Cannon 8 | . . . . . . 3 2 3 . . . . Launcher 14 | . 5 . . 3 . 3 1 1 . . . 1 Special Weapon 8 | . . . . . 1 . 1 1 . 2 1 2 Impact Weapon 7 | . . . . . . 2 1 3 . . 1 . Slashing Weapon . | . . . . . . . . . . . . . Piercing Weapon . | . . . . . . . . . . . . . Special Melee Weapon . | . . . . . . . . . . . . . Unidentified Prototypes 1 | . . . . 1 . . . . . . . . Corrupted Parts 3 | . . . . . . . 3 . . . . . System Corruption 11 | . . . . . . . 11 . . . . . Parts Lost 23 | . . . . . 2 11 6 . . . . 4 Power 3 | . . . . . 1 2 . . . . . . Propulsion 12 | . . . . . 1 5 4 . . . . 2 Utility 2 | . . . . . . 1 . . . . . 1 Weapon 6 | . . . . . . 3 2 . . . . 1 Highest Loss Streak 5 | . . . . . 2 5 3 . . . . 4 To Critical Strikes . | . . . . . . . . . . . . . Average Slot Usage (%) 98 | . 96 100 100 100 98 97 97 98 99 96 100 96 Engine 5 | . 14 14 14 14 9 . . . . . 5 7 Core 4 | . . . . . . 8 8 9 7 7 1 . Treads 27 | . 27 28 28 28 36 11 26 36 30 30 30 30 Leg 5 | . . . . . . 23 9 . . . . . Device 1 | . . . . . . . 1 . 5 7 7 7 Storage 10 | . 14 14 14 14 9 9 9 9 7 7 7 7 Processor 3 | . 4 . . . 9 9 9 . . . . . Hackware 6 | . . . . . . 4 5 12 16 16 18 19 Protection 12 | . 6 14 14 14 16 13 11 13 15 10 11 7 Energy Gun 4 | . . . . . . 2 16 . . 7 7 7 Ballistic Gun 9 | . 24 28 28 27 18 5 . . . . . . Ballistic Cannon 1 | . . . . . . 6 . 2 . . . . Special Weapon 2 | . . . . . . . . 8 6 7 5 . Impact Weapon 2 | . . . . . . 2 . 5 6 . 1 5 Naked Turns . | . . . . . . . . . . . . . Heaviest Build 107 | 13 29 29 49 50 54 99 103 105 107 106 106 102 Greatest Support 80 | 40 40 40 40 40 80 80 80 80 80 80 80 80 Greatest Overweight (x) 9 | . . . 1 1 . 9 2 1 1 1 1 1 Average Overweight (x) . | . . . . 1 . 1 1 1 1 1 1 1 Largest Inventory Capacity 25 | 8 15 15 20 20 20 25 25 25 25 25 25 25 Average Capacity 22 | 7 12 15 19 20 20 24 25 25 25 25 25 25 Most Carried 25 | 3 10 11 16 18 20 25 25 25 25 25 25 25 Average Carried 20 | 1 7 10 13 17 16 22 24 24 24 24 24 24 Final Capacity 25 | 8 15 15 20 20 20 25 25 25 25 25 25 25 Final Carried 25 | 3 10 11 16 18 20 24 25 25 25 25 25 22 Class Distribution -------------------- 53% | Bothacker-Mutant 39% | Mutant 6% | Scavenger-Mutant Dominant Class ---------------- Mutant | -10/Materials Mutant | -10/Mines Mutant | -10/Exiles Mutant | -9/Mines Mutant | -8/Materials Scavenger-Mutant | -8/Garrison Bothacker-Mutant | -8/Materials Bothacker-Mutant | -8/Garrison Bothacker-Mutant | -7/Factory Bothacker-Mutant | -7/Waste Bothacker-Mutant | -7/Factory Bothacker-Mutant | -7/Garrison Resources | -11 -10 -10 -10 -9 -8 -8 -8 -8 -7 -7 -7 -7 ----------- Run | Jun Mat Min Exi Min Mat Gar Mat Gar Fac Was Fac Gar Matter Collected 2606 | 205 469 . . 151 155 595 493 405 73 . 60 . Remotely . | . . . . . . . . . . . . . Salvage Created 3055 | . 279 . . 106 248 735 1374 150 73 . . 90 Parts 188 | . 23 . . 8 12 52 69 12 5 . . 7 Haulers Intercepted 1 | . 1 . . . . . . . . . . . Recyclers Shooed 2 | . . . . . . . 2 . . . . . Parts Field Recycled . | . . . . . . . . . . . . . Retrieved Matter . | . . . . . . . . . . . . . Parts Self-Destructed . | . . . . . . . . . . . . . Prevented . | . . . . . . . . . . . . . Kills | -11 -10 -10 -10 -9 -8 -8 -8 -8 -7 -7 -7 -7 ------- Run | Jun Mat Min Exi Min Mat Gar Mat Gar Fac Was Fac Gar Combat Hostiles Destroyed 84 | . 10 . . 9 4 26 19 11 1 . . 4 Guns 23 | . 4 . . 1 4 6 7 . . . . 1 Cannons 15 | . . . . . . 9 1 5 . . . . AOE 43 | . 6 . . 8 . 11 9 6 . . . 3 Classes Destroyed 14 | . 7 . . . 1 2 3 . . . . 1 Worker 1 | . 1 . . . . . . . . . . . Tunneler 3 | . . . . . . . 2 . 1 . . . Hauler 1 | . 1 . . . . . . . . . . . Recycler 6 | . 1 . . . . . 5 . . . . . Operator 1 | . 1 . . . . . . . . . . . Watcher 6 | . 1 . . . 1 . 4 . . . . . Swarmer 31 | . 8 . . 6 . 7 3 4 . . . 3 Grunt 35 | . 2 . . 3 2 11 11 6 . . . . Brawler 2 | . . . . . . . 2 . . . . . Protector 1 | . . . . . . . 1 . . . . . Sentry 9 | . . . . . 2 4 3 . . . . . Specialist 1 | . . . . . . . . . . . . 1 Hunter 2 | . . . . . . 1 . . 1 . . . Programmer 4 | . . . . . . 3 . 1 . . . . Best Kill Streak 9 | . 7 . . 3 2 6 9 8 1 . . 4 Combat Bots Only 8 | . 6 . . 3 2 6 7 8 1 . . 4 Max Kills in Single Turn 4 | . 3 . . 3 1 3 3 4 1 . . 2 Gunslinging . | . . . . . . . . . . . . . Exploded 4 | . 2 . . 3 . 3 3 4 . . . 2 Melee . | . . . . . . . . . . . . . Uniques/NPCs Destroyed . | . . . . . . . . . . . . . Combat | -11 -10 -10 -10 -9 -8 -8 -8 -8 -7 -7 -7 -7 -------- Run | Jun Mat Min Exi Min Mat Gar Mat Gar Fac Was Fac Gar Damage Taken 4305 | . 360 . . 142 252 1410 841 592 185 . . 523 Core 394 | . 62 . . 20 . 95 104 38 10 . . 65 Absorbed by Shields 50 | . . . . . . . . 50 . . . . Redirected to Shielding 24 | . 6 . . 4 . 14 . . . . . . Regen/Repaired (Parts) 597 | . 36 . . . . . 561 . . . . . Core Remaining (%) 74 | 100 . . . 67 . . . 56 . . . . Volleys Fired 311 | . 51 . . 12 16 72 66 53 8 8 11 14 Largest 2 | . 2 . . 2 2 2 2 1 2 1 1 2 Hottest 110 | . 40 . . 40 100 94 100 50 110 5 55 105 Shots Fired 486 | . 92 . . 18 31 120 118 53 15 8 12 19 Gun 350 | . 82 . . 12 30 83 106 1 14 . 9 13 Cannon 60 | . . . . . . 24 4 32 . . . . Launcher 40 | . 10 . . 6 . 13 6 2 . . . 3 Special 36 | . . . . . 1 . 2 18 1 8 3 3 Kinetic 256 | . 82 . . 12 30 96 4 32 . . . . Thermal 9 | . . . . . 1 8 . . . . . . Explosive 40 | . 10 . . 6 . 13 6 2 . . . 3 Electromagnetic 146 | . . . . . . 3 106 1 14 . 9 13 Robot Hit Streak 31 | . 8 . . 4 15 31 9 11 4 4 2 4 Robot Miss Streak 5 | . 4 . . 4 1 2 3 2 2 2 5 2 Penetration Max . | . . . . . . . . . . . . . Secondary Targets 4 | . . . . . . 2 1 . . . . 1 Max Gunslinging Chain 1 | . . . . . . 1 1 . . . . 1 Shots Hit Robots 314 | . 50 . . 7 25 83 79 39 11 5 5 10 Core Hits 178 | . 28 . . 12 13 56 47 13 2 . . 7 Critical Kills . | . . . . . . . . . . . . . Critical Parts Destroyed 1 | . . . . . . 1 . . . . . . Critical Strikes 3 | . . . . . . 2 . . . . 1 . Destroy 1 | . . . . . . 1 . . . . . . Blast 1 | . . . . . . 1 . . . . . . Corrupt 1 | . . . . . . . . . . . 1 . Melee Attacks 33 | . . . . . . 6 2 19 5 . 1 . Impact 33 | . . . . . . 6 2 19 5 . 1 . Slashing . | . . . . . . . . . . . . . Piercing . | . . . . . . . . . . . . . Sneak Attacks 1 | . . . . . . . . . 1 . . . Combat Hostiles . | . . . . . . . . . . . . . Follow-up Attacks . | . . . . . . . . . . . . . Damage Inflicted 7963 | . 944 . . 503 255 2314 2271 1005 214 . 97 360 Guns 3199 | . 509 . . 74 255 717 1336 . 109 . 76 123 Cannons 1236 | . . . . . . 481 88 667 . . . . Explosions 3387 | . 435 . . 426 . 1116 835 338 . . . 237 Melee 105 | . . . . . . . . . 105 . . . Ramming 36 | . . . . 3 . . 12 . . . 21 . Kinetic 2730 | . 509 . . 74 255 1137 88 667 . . . . Thermal 426 | . . . . . . 61 314 . . . . 51 Explosive 3022 | . 435 . . 426 . 1116 521 338 . . . 186 Electromagnetic 1644 | . . . . . . . 1336 . 109 . 76 123 Impact 105 | . . . . . . . . . 105 . . . Slashing . | . . . . . . . . . . . . . Piercing . | . . . . . . . . . . . . . Highest Corruption 18 | . . . . . 2 6 17 1 . 14 18 18 Average Corruption 6 | . . . . . 2 3 7 1 . 9 17 18 Corruption Purged 17 | . . . . . . . 17 . . . . . Corruption Blocked . | . . . . . . . . . . . . . Effects 99 | . . . . . . 32 22 4 . 6 23 12 Message Errors 24 | . . . . . . 11 6 . . . 5 2 Matter Fused 19 | . . . . . . 6 4 2 . 1 4 2 Heat Flow Errors 18 | . . . . . . 5 3 . . 3 3 4 Energy Discharges 6 | . . . . . . . 3 . . . 3 . Parts Rejected 4 | . . . . . . . 1 . . 2 1 . Parts Fused 3 | . . . . . . 2 . . . . 1 . Data Loss (minor) 13 | . . . . . . 5 3 . . . 3 2 Data Loss (major) 5 | . . . . . . 1 1 2 . . 1 . Misfires 2 | . . . . . . . 1 . . . 1 . Misdirections 1 | . . . . . . . . . . . 1 . Weapon Failures 4 | . . . . . . 2 . . . . . 2 Overload Shots . | . . . . . . . . . . . . . Overflow Damage 212 | . 25 . . 15 . 44 36 17 75 . . . Projectiles 32 | . . . . . . 15 . 17 . . . . Explosions 105 | . 25 . . 15 . 29 36 . . . . . Melee 75 | . . . . . . . . . 75 . . . Knockbacks 18 | . . . . . . 7 2 8 1 . . . Impact 1 | . . . . . . . . . 1 . . . Kinetic 13 | . . . . . . 4 1 8 . . . . Secondary 4 | . . . . . . 3 1 . . . . . Self-Inflicted Damage 296 | . 71 . . 32 . 54 110 22 . . . 7 Shots 13 | . 2 . . 2 . 3 4 1 . . . 1 Rammed 5 | . . . . 1 . . 1 . . . 3 . Targets Rammed 7 | . . . . 1 . . 3 . . . 3 . Kicked 1 | . . . . . . . 1 . . . . . Crushed 1 | . . . . . . . 1 . . . . . Highest Temperature 515 | . 12 . . 9 26 247 515 202 . 244 222 148 Average Temperature 94 | . 7 . . 9 14 59 136 49 . 117 103 57 Received Heat Transfer 1617 | . 36 . . 36 153 639 387 318 . . . 48 Effects 8 | . . . . . . 1 7 . . . . . Shutdowns 2 | . . . . . . . 2 . . . . . Energy Bleed 3 | . . . . . . 1 2 . . . . . Damage (minor) 1 | . . . . . . . 1 . . . . . Damage (major) 2 | . . . . . . . 2 . . . . . Siege Activations . | . . . . . . . . . . . . . Robots Corrupted 5 | . . . . . . . 4 . 1 . . . Combat Hostiles 3 | . . . . . . . 2 . 1 . . . Parts Fried 13 | . . . . . . . 10 . 3 . . . Impact Corruptions 3 | . . . . . . . . . 3 . . . Robots Melted . | . . . . . . . . . . . . . Combat Hostiles . | . . . . . . . . . . . . . Parts Melted . | . . . . . . . . . . . . . Heat Transferred 585 | . . . . . . 185 350 . . . . 50 Parts Sabotaged . | . . . . . . . . . . . . . Parts Stolen . | . . . . . . . . . . . . . Parts Stripped . | . . . . . . . . . . . . . Power Chain Reactions 5 | . . . . . . . 4 . . . . 1 Missiles Intercepted . | . . . . . . . . . . . . . Alert | -11 -10 -10 -10 -9 -8 -8 -8 -8 -7 -7 -7 -7 ------- Run | Jun Mat Min Exi Min Mat Gar Mat Gar Fac Was Fac Gar Peak Influence 823 | . 205 67 . 115 280 823 648 763 412 35 111 84 Initial 401 | . . 67 . . . 52 401 189 400 35 24 . Average 288 | . 70 67 . 47 147 517 395 528 263 35 45 11 Maximum Alert Level 3 | . 1 . . . 1 3 2 3 2 . . . Low Security (%) 44 | 100 99 100 . 100 76 15 1 6 19 100 100 100 Level 1 18 | . . . . . 23 13 43 21 40 . . . Level 2 30 | . . . . . . 48 55 52 40 . . . Level 3 6 | . . . . . . 22 . 19 . . . . Level 4 . | . . . . . . . . . . . . . Level 5 . | . . . . . . . . . . . . . High Security . | . . . . . . . . . . . . . Max Security . | . . . . . . . . . . . . . Squads Dispatched 7 | . 1 . . . 3 . 2 . 1 . . . Investigation 3 | . . . . . 3 . . . . . . . Extermination 1 | . . . . . . . . . 1 . . . Reinforcement 2 | . 1 . . . . . 1 . . . . . Assault 1 | . . . . . . . 1 . . . . . Garrison . | . . . . . . . . . . . . . Intercept . | . . . . . . . . . . . . . Searches Triggered . | . . . . . . . . . . . . . Construction Impeded . | . . . . . . . . . . . . . Haulers Reinforced . | . . . . . . . . . . . . . Active Scanning Responses . | . . . . . . . . . . . . . Cargo Convoy Interrupts . | . . . . . . . . . . . . . Stealth | -11 -10 -10 -10 -9 -8 -8 -8 -8 -7 -7 -7 -7 --------- Run | Jun Mat Min Exi Min Mat Gar Mat Gar Fac Was Fac Gar Distress Signals 10 | . 1 . . . 3 . 4 . 1 . 1 . Communications Jammed . | . . . . . . . . . . . . . Distress Signals . | . . . . . . . . . . . . . Times Spotted 139 | . 19 . . 9 12 23 39 17 4 5 5 6 Peak Tracking Total 9 | . 3 . . 3 5 7 7 9 2 1 3 3 Tactical Retreats 4 | . . . . . 1 . 2 . . . 1 . Traps | -11 -10 -10 -10 -9 -8 -8 -8 -8 -7 -7 -7 -7 ------- Run | Jun Mat Min Exi Min Mat Gar Mat Gar Fac Was Fac Gar Traps Triggered 14 | . . . . . 2 4 . 5 1 . 2 . Indirectly . | . . . . . . . . . . . . . Trap Hack Attempts . | . . . . . . . . . . . . . Triggered . | . . . . . . . . . . . . . Disarmed . | . . . . . . . . . . . . . Reprogrammed . | . . . . . . . . . . . . . Reused . | . . . . . . . . . . . . . Traps Extracted . | . . . . . . . . . . . . . Installed . | . . . . . . . . . . . . . Triggered . | . . . . . . . . . . . . . Machines | -11 -10 -10 -10 -9 -8 -8 -8 -8 -7 -7 -7 -7 ---------- Run | Jun Mat Min Exi Min Mat Gar Mat Gar Fac Was Fac Gar Machines Disabled 16 | . 6 . . 2 . 3 3 2 . . . . Max in Single Turn 4 | . 4 . . 2 . 1 1 1 . . . . Garrison Relay 4 | . . . . . . 2 . 2 . . . . Machines Repaired . | . . . . . . . . . . . . . Machines Sabotaged . | . . . . . . . . . . . . . Overloaded Fab Kills . | . . . . . . . . . . . . . Hacking | -11 -10 -10 -10 -9 -8 -8 -8 -8 -7 -7 -7 -7 --------- Run | Jun Mat Min Exi Min Mat Gar Mat Gar Fac Was Fac Gar Machines Accessed 35 | . 7 . 2 . 5 4 9 2 5 . 1 . Terminals 23 | . 5 . . . 3 4 5 2 4 . . . Fabricators 1 | . . . . . . . . . 1 . . . Repair Stations 3 | . 1 . . . . . 2 . . . . . Recycling Units 3 | . 1 . . . 1 . 1 . . . . . Scanalyzers . | . . . . . . . . . . . . . Garrison Access 3 | . . . . . 1 . 1 . . . 1 . Total Hacks 89 | . 18 . 2 . 10 10 35 4 9 . 1 . Successful 41 | . 7 . 2 . 3 2 23 2 1 . 1 . Failed 48 | . 11 . . . 7 8 12 2 8 . . . Catastrophic 9 | . . . . . 2 3 1 2 1 . . . Database Lockouts . | . . . . . . . . . . . . . Manual 43 | . 17 . 1 . 9 2 11 . 3 . . . Terminals 53 | . 11 . . . 7 10 13 4 8 . . . Fabricators 1 | . . . . . . . . . 1 . . . Repair Stations 21 | . 2 . . . . . 19 . . . . . Recycling Units 9 | . 5 . . . 2 . 2 . . . . . Scanalyzers . | . . . . . . . . . . . . . Garrison Access 3 | . . . . . 1 . 1 . . . 1 . Terminal Hacks 13 | . 1 . 2 . . 1 6 2 1 . . . Record 1 | . . . 1 . . . . . . . . . Robot Analysis 1 | . 1 . . . . . . . . . . . Prototype ID Bank 1 | . . . . . . . 1 . . . . . Open Door 1 | . . . . . . . . 1 . . . . Emergency Access Points 1 | . . . . . . . . 1 . . . . Terminal Index 1 | . . . . . . . 1 . . . . . Unreport Threat 2 | . . . . . . . 2 . . . . . Locate Traps 1 | . . . . . . . . . 1 . . . Hauler Manifests 1 | . . . . . . . 1 . . . . . Zone Layout 1 | . . . . . . . 1 . . . . . Garrison Registry 1 | . . . . . . 1 . . . . . . Derelict Proto ID Bank 1 | . . . 1 . . . . . . . . . Fabricator Hacks . | . . . . . . . . . . . . . Repair Station Hacks 16 | . 2 . . . . . 14 . . . . . Scan Component 8 | . 1 . . . . . 7 . . . . . Repair 8 | . 1 . . . . . 7 . . . . . Recycling Unit Hacks 1 | . . . . . . . 1 . . . . . Retrieve Components 1 | . . . . . . . 1 . . . . . Scanalyzer . | . . . . . . . . . . . . . Garrison Access Hacks 3 | . . . . . 1 . 1 . . . 1 . Unlock Access 3 | . . . . . 1 . 1 . . . 1 . Unauthorized Hacks 8 | . 4 . . . 2 1 1 . . . . . Terminals 4 | . 2 . . . 1 1 . . . . . . Assimilate 1 | . 1 . . . . . . . . . . . Botnet 1 | . . . . . . 1 . . . . . . Operators 2 | . 1 . . . 1 . . . . . . . Fabricators . | . . . . . . . . . . . . . Repair Stations . | . . . . . . . . . . . . . Recycling Units 4 | . 2 . . . 1 . 1 . . . . . Reject 2 | . 1 . . . . . 1 . . . . . Recyclers 1 | . 1 . . . . . . . . . . . Tunnel 1 | . . . . . 1 . . . . . . . Scanalyzers . | . . . . . . . . . . . . . Garrison Access . | . . . . . . . . . . . . . Data Cores Recovered . | . . . . . . . . . . . . . Used . | . . . . . . . . . . . . . Hacking Detections 26 | . 6 . . . 3 4 7 1 5 . . . Full Trace Events 3 | . . . . . 1 1 . 1 . . . . Feedback Events . | . . . . . . . . . . . . . Feedback Blocked . | . . . . . . . . . . . . . Robot Schematics Acquired . | . . . . . . . . . . . . . Robots Built . | . . . . . . . . . . . . . Authchips . | . . . . . . . . . . . . . Time . | . . . . . . . . . . . . . Total Robot Build Rating . | . . . . . . . . . . . . . Part Schematics Acquired . | . . . . . . . . . . . . . Parts Built . | . . . . . . . . . . . . . Authchips . | . . . . . . . . . . . . . Time . | . . . . . . . . . . . . . Total Part Build Rating . | . . . . . . . . . . . . . Parts Repaired 8 | . 1 . . . . . 7 . . . . . Time 262 | . 26 . . . . . 236 . . . . . Parts Recycled . | . . . . . . . . . . . . . Recycled Matter . | . . . . . . . . . . . . . Retrieved Matter . | . . . . . . . . . . . . . Retrieved Components 9 | . . . . . . . 9 . . . . . Parts Scanalyzed . | . . . . . . . . . . . . . Part Schematics Acquired . | . . . . . . . . . . . . . Parts Damaged . | . . . . . . . . . . . . . Bothacking | -11 -10 -10 -10 -9 -8 -8 -8 -8 -7 -7 -7 -7 ------------ Run | Jun Mat Min Exi Min Mat Gar Mat Gar Fac Was Fac Gar Used RIF Installer 3 | . . . . . . 2 . 1 . . . . Zone Cloak 1 | . . . . . . . . 1 . . . . Robot Detection 1 | . . . . . . 1 . . . . . . Robots Hacked 19 | . . . . . . . 2 8 1 6 1 1 Non-combat 1 | . . . . . . . . . 1 . . . Combat 18 | . . . . . . . 2 8 . 6 1 1 Robot Hacks Applied 23 | . . . . . . . 2 11 1 6 2 1 map_route 1 | . . . . . . . . . 1 . . . ignore_targets 6 | . . . . . . . . . . 6 . . find_garrison 1 | . . . . . . . . . . . 1 . scatter_targeting 1 | . . . . . . . . 1 . . . . amplify_resonance 3 | . . . . . . . . 3 . . . . reboot_system 4 | . . . . . . . . 4 . . . . overwrite_iff 3 | . . . . . . . 2 1 . . . . formatsys_high 4 | . . . . . . . . 2 . . 1 1 Relay Couplers Released 21 | . . . . . . 9 . 12 . . . . Machine Destruction 17 | . . . . . . 9 . 8 . . . . Programmers 4 | . . . . . . . . 4 . . . . Attached 9 | . . . . . . . 1 4 1 1 1 1 Fabnet Peak Effective % . | . . . . . . . . . . . . . Robots Rewired . | . . . . . . . . . . . . . Allies Hacked . | . . . . . . . . . . . . . Hacks Repelled . | . . . . . . . . . . . . . Allies | -11 -10 -10 -10 -9 -8 -8 -8 -8 -7 -7 -7 -7 -------- Run | Jun Mat Min Exi Min Mat Gar Mat Gar Fac Was Fac Gar Total Allies 14 | . . 1 . 3 . 2 2 4 . . 1 1 Largest Group 3 | . . 1 . 3 3 2 2 3 . . 1 . Highest-Rated Group 61 | . . 31 . 40 40 45 32 61 . . 32 . Highest-Rated Ally 32 | . . 31 . 16 16 25 16 31 . . 32 . Total Orders 2 | . . . . 2 . . . . . . . . STAY 1 | . . . . 1 . . . . . . . . FOLLOW 1 | . . . . 1 . . . . . . . . Ally Attacks 74 | . . . . . 37 3 5 24 . . 5 . Total Damage 1132 | . . . . . 428 72 43 343 . . 246 . Kills 15 | . . . . . 7 2 . 4 . . 2 . Allies Corrupted 1 | . . . . . . . 1 . . . . . Allies Melted 1 | . . . . . . 1 . . . . . . Intel | -11 -10 -10 -10 -9 -8 -8 -8 -8 -7 -7 -7 -7 ------- Run | Jun Mat Min Exi Min Mat Gar Mat Gar Fac Was Fac Gar Robot Analysis Total 1 | . 1 . . . . . . . . . . . Derelict Logs Recovered 2 | . . 1 . 1 . . . . . . . . Drone Launches . | . . . . . . . . . . . . . Drone Recoveries . | . . . . . . . . . . . . . Exploration | -11 -10 -10 -10 -9 -8 -8 -8 -8 -7 -7 -7 -7 ------------- Run | Jun Mat Min Exi Min Mat Gar Mat Gar Fac Was Fac Gar Turns Passed 10688 | 66 977 323 754 1229 404 1547 1959 1497 998 213 475 246 Spaces Moved 3924 | 37 455 189 339 494 180 489 535 517 386 78 164 61 Core 4 | 4 . . . . . . . . . . . . Treads 3414 | 33 455 189 339 494 180 146 372 517 386 78 164 61 Legs 506 | . . . . . . 343 163 . . . . . Wheels . | . . . . . . . . . . . . . Hover . | . . . . . . . . . . . . . Flight . | . . . . . . . . . . . . . Fastest Speed 50 | 50 160 160 160 240 160 160 240 245 245 245 245 245 Average Speed 224 | 148 160 160 222 240 160 247 248 245 245 245 245 245 Slowest Speed 750 | 160 160 160 240 240 160 750 260 245 245 245 245 245 Overloaded Moves . | . . . . . . . . . . . . . Propulsion Burnouts . | . . . . . . . . . . . . . Robots Hopped . | . . . . . . . . . . . . . Cave-ins Triggered . | . . . . . . . . . . . . . Exploration Rate (%) 45 | 3 77 46 69 91 22 51 51 71 10 76 6 12 Regions Visited 12 Branch Regions 3 Pre-discovered Areas 2 | . . . 1 . 1 . . . . . . . Known Exits Taken 3 | . . . . . 1 . 1 . . . 1 . Unknown Exits Taken 5 | 1 1 1 1 1 . . . . . . . . Scrap Searched 3 | . . 1 . 2 . . . . . . . . Spaces Dug 36 | . . . . 6 1 10 2 13 3 . 1 . Terrain Destroyed 251 | . 51 . . 37 1 23 107 15 3 . 1 13 Melee 24 | . . . . . . 5 2 13 3 . 1 . Projectile 1 | . . . . . 1 . . . . . . . AOE 226 | . 51 . . 37 . 18 105 2 . . . 13 Terrain Rammed . | . . . . . . . . . . . . . Walls Destroyed . | . . . . . . . . . . . . . Machines Disabled . | . . . . . . . . . . . . . Actions | -11 -10 -10 -10 -9 -8 -8 -8 -8 -7 -7 -7 -7 --------- Run | Jun Mat Min Exi Min Mat Gar Mat Gar Fac Was Fac Gar Total 5262 | 45 614 210 340 517 266 695 1044 662 418 96 219 136 Wait 693 | . 84 21 . . 45 46 370 41 3 2 28 53 Move 3916 | 36 454 188 338 493 180 488 535 516 386 77 164 61 Hop . | . . . . . . . . . . . . . Pick Up 82 | 3 7 1 1 2 11 20 22 5 6 2 2 . Fast Attach 32 | 6 3 . . . 2 4 11 2 . 2 2 . Attach 35 | . . . . 1 5 11 8 3 3 1 . 3 Detach 11 | . 1 . . 1 1 1 3 2 1 . . 1 Swap 73 | . 12 . 1 7 2 18 10 10 3 2 4 4 Drop 42 | . 2 . . . 4 12 14 2 3 2 3 . Fire 311 | . 51 . . 12 16 72 66 53 8 8 11 14 Melee 33 | . . . . . . 6 2 19 5 . 1 . Ram . | . . . . . . . . . . . . . Kick 1 | . . . . . . . 1 . . . . . Crush 6 | . . . . 1 . . 2 . . . 3 . Escape Stasis 25 | . . . . . . 17 . 8 . . . . Rewire 2 | . . . . . . . . 1 . . 1 . Trap . | . . . . . . . . . . . . . Miscellaneous . | . . . . . . . . . . . . . Route ------- -11/Junkyard -10/Materials (discovered 4 exits: [*Mat x3] / [*Min]) -10/Mines -10/Exiles -9/Mines -8/Materials (discovered 2 exits: *Fac / Gar) -8/Garrison (discovered 4 exits: *Mat x4) -8/Materials (discovered 2 exits: *Fac / Gar) -8/Garrison (discovered 3 exits: *Fac x3) -7/Factory -7/Waste -7/Factory -7/Garrison History --------- Turn | Location | Event 2 | -11/Junkyard | Discovered new exit (range 16) 67 | -11/Junkyard | Entered Materials 312 | -10/Materials | Build established: Mutant 321 | -10/Materials | Discovered new exit (range 6) 436 | -10/Materials | Repaired Lgt. Treads 794 | -10/Materials | Discovered new exit (range 15) 872 | -10/Materials | Discovered new exit (range 7) 973 | -10/Materials | Discovered new exit (range 10) 1044 | -10/Materials | Entered Mines 1047 | -10/Mines | Received a Mining Laser from a helpful Derelict 1057 | -10/Mines | Met a Derelict bent on vengeance 1127 | -10/Mines | Learned Materials emergency access door positions 1359 | -10/Mines | Deemed a non-threat by the Exiles lab entrance 1361 | -10/Mines | Discovered new exit (range 5) 1367 | -10/Mines | Entered Exiles 1406 | -10/Exiles | Met 8R-AWN 1431 | -10/Exiles | Met EX-HEX 1523 | -10/Exiles | Met EX-DEC 1566 | -10/Exiles | Learned location of Zion (-7) 1712 | -10/Exiles | Met EX-BIN 1746 | -10/Exiles | Aligned with FarCom system 1748 | -10/Exiles | Given EX-Vault access code 1803 | -10/Exiles | Opened EX-Vault 1820 | -10/Exiles | Found XL Autogun Array 1867 | -10/Exiles | Warned to stay clear of 0b10 Research branches 2102 | -10/Exiles | Discovered new exit (range 10) 2121 | -10/Exiles | Left Exiles lab with XL Autogun Array 2121 | -10/Exiles | Entered Mines 2169 | -9/Mines | Found a damaged Exp. Sensor Array with a note attached 2174 | -9/Mines | Found Prototype Device 2225 | -9/Mines | Identified Exp. Sensor Array 2385 | -9/Mines | Found a hidden stash of uninstalled traps 2783 | -9/Mines | Learned Materials terminal intel 3093 | -9/Mines | Assisted by bots powering up and referring to "LRC-V3" 3237 | -9/Mines | Discovered new exit (range 8) 3350 | -9/Mines | Entered Materials 3350 | -8/Materials | Accompanied by 3 allies 3350 | -8/Materials | Evolved 4 slots: Propulsion x2, Utility x2 3352 | -8/Materials | Loaded intel: 12 terminal locations 3733 | -8/Materials | Discovered new exit (range 9) 3754 | -8/Materials | Identified exit to Garrison 3754 | -8/Materials | Entered Garrison 3841 | -8/Garrison | Triggered checkpoint 3999 | -8/Garrison | Lost 3 parts (1n2w) 4001 | -8/Garrison | Garrison Relay disabled 4039 | -8/Garrison | Rescued a captive Derelict 4040 | -8/Garrison | Rescued a captive Derelict 4206 | -8/Garrison | Triggered checkpoint 4270 | -8/Garrison | Lost 5 parts (3n1u1w) 4445 | -8/Garrison | Discovered new exit (range 11) 4482 | -8/Garrison | Triggered checkpoint 4500 | -8/Garrison | Discovered new exit (range 23) 4500 | -8/Garrison | Discovered new exit (range 50) 4500 | -8/Garrison | Discovered new exit (range 59) 4500 | -8/Garrison | Discovered new exit (range 32) 4539 | -8/Garrison | Build established: Scavenger-Mutant 4652 | -8/Garrison | Garrison Relay disabled 4969 | -8/Garrison | Installed Relay Interface Framework 5048 | -8/Garrison | Triggered checkpoint 5156 | -8/Garrison | Expanded RIF knowledge: Robot Detection 5258 | -8/Garrison | Build established: Bothacker-Mutant 5301 | -8/Garrison | Entered Materials 5863 | -8/Materials | System corruption reached 10% 5881 | -8/Materials | Destroyed 7 combat bots 6101 | -8/Materials | First assault squad dispatched 6185 | -8/Materials | Lost 3 parts (1n2w) 6529 | -8/Materials | Discovered new exit (range 15) 6646 | -8/Materials | Repaired Lgt. Treads 6673 | -8/Materials | Repaired Lgt. Treads 6700 | -8/Materials | Repaired Lgt. Treads 6739 | -8/Materials | Repaired Hrd. Medium Armor Plating 6779 | -8/Materials | Repaired Imp. Light Armor Plating 7063 | -8/Materials | Repaired Mic. Nuclear Core 7102 | -8/Materials | Repaired Assault Cannon 7260 | -8/Materials | Identified exit to Garrison 7260 | -8/Materials | Entered Garrison 7319 | -8/Garrison | Triggered checkpoint 7350 | -8/Garrison | Garrison Relay disabled 7514 | -8/Garrison | Rescued a captive Derelict 7674 | -8/Garrison | Triggered checkpoint 7709 | -8/Garrison | Destroyed 8 combat bots 7712 | -8/Garrison | Triggered checkpoint 7784 | -8/Garrison | Triggered checkpoint 7877 | -8/Garrison | Discovered new exit (range 10) 8110 | -8/Garrison | Spotted B-75 Beast 8184 | -8/Garrison | Garrison Relay disabled 8406 | -8/Garrison | Discovered new exit (range 6) 8439 | -8/Garrison | Spotted B-75 Beast 8613 | -8/Garrison | Discovered new exit (range 11) 8661 | -8/Garrison | Expanded RIF knowledge: Zone Cloak 8757 | -8/Garrison | Entered Factory 8757 | -7/Factory | Evolved 2 slots: Utility x2 9755 | -7/Factory | Sucked down chute 9755 | -7/Factory | Entered Waste 9770 | -7/Waste | EMP discharged 9778 | -7/Waste | Spotted C-40 Crusher 9781 | -7/Waste | Spotted C-40 Crusher 9795 | -7/Waste | Spotted C-40 Crusher 9847 | -7/Waste | Spotted C-40 Crusher 9860 | -7/Waste | Spotted C-40 Crusher 9870 | -7/Waste | EMP discharged 9870 | -7/Waste | System corruption reached 10% 9890 | -7/Waste | Spotted C-40 Crusher 9903 | -7/Waste | Discovered new exit (range 15) 9957 | -7/Waste | Found Corrupted Powered Armor 9968 | -7/Waste | Entered Factory 10443 | -7/Factory | Identified exit to Garrison 10443 | -7/Factory | Entered Garrison 10631 | -7/Garrison | Triggered checkpoint 10645 | -7/Garrison | Triggered checkpoint 10689 | -7/Garrison | Self-destructed Last Messages --------------- 10643_ System corrupted: Mni. Grenade Launcher failed to launch. 10647_ S-27 Virus destroyed. 10656_ Jacked Y-54 Guardian... >>formatsys_high Rerouting network defenses. Erasing system data. Installing primary routines, ETC: 6. 10657_ System corrupted: Heat flow error (+144). 10659_ Guardian 4b destroyed. 10669_ X-57 Shotgunner destroyed. 10669_ Switching to secondary target: Y-54 Guardian. 10672_ System corrupted: Shock Rifle failed to cycle. 10672_ Lgt. Treads destroyed. 10674_ System corrupted: Heat flow error (+164). 10676_ Chain reaction triggered in Nuclear Core. 10677_ The unstable cave ceiling collapses. 10678_ X-57 Shotgunner IFF system glitched. 10680_ Lgt. Treads destroyed. 10681_ Shock Rifle destroyed. 10686_ Hrd. Medium Armor Plating destroyed. Map ----- +----------------------------------------------------+ | ?????????????????????????????????????????????????? | | ?????????????????????????????????????????????????? | | ?????????????????????????????????????????????????? | | ?????????????????????????????????????????????????? | | ?????????????????????????????????????????????????? | | ?????????????????????????????????????????????????? | | ???????#####??????????????????????????Y??????????? | | ???????# #?????????????????????????????????????? | | ???????# ###########????g??????????????????????? | | ???????# #???????????????????????????? | | ???????# #???????????????????????????? | | ???????############ #######?????????????????????? | | ??????????????????# #???????????????????? | | ??????????????????# #######?????????????????????? | | ??????????????????# #???????????????????????????? | | ??????????????????# #???????????????????????????? | | ??????????????????# #???????????????????????????? | | ??????????????????# #???????????????????????????? | | ??????????????????# #???????????????????????????? | | ??????????????????# #???????????????????????????? | | ??????????????????# #?????????#?????????????????? | | ??????????????????# #??????#? #????? #??????????? | | ??????????????????# #????? # ### ###????????? | | ??????????????????# ######;; *%! ??????? | | ??????????????????# x [== ??????? | | ??????????????????# @ !%[ Y ??????? | | ??????????????????#########;# # ??????? | | ????????????????????????????? ???????? | | ?????????????????????????????? ???????? | | ??????????????????????????????? ^ [ ????????? | | ???????????????????????????????? % % ????????? | | ???????????????????????????????? [ h ????????? | | ?????????????????????????????????# ##?????????? | | ?????????????????????????????????? #??????????? | | ??????????????????????????????????? ??????????? | | ???????????????????????????????????? ??????????? | | ?????????????????????????????????????????????????? | | ?????????????????????????????????????????????????? | | ??????????????????????????????????gg???????Y?????? | | ?????????????????????????????????????????????????? | | ?????????????????????????????????????????????????? | | ?????????????????????????????????????????????????? | | ?????????????????????????????????????????????????? | | ?????????????????????????????????????????????????? | | ?????????????????????????????????????????????????? | | ?????????????????????????????????????????????????? | | ?????????????????????????????????????????????????? | | ?????????????????????????????????????????????????? | | ?????????????????????????????????????????????????? | | ?????????????????????????????????????????????????? | +----------------------------------------------------+ Best States ------------- Heat Dissipation 61 Energy Generation 15 Energy Capacity 250 Matter Stores 300 Matter Capacity 300 Sight Range 16 Terrain Scan Density 10 Armor Coverage 375 Core Shielding 20 Evasion (%) 40 Targeting Accuracy 8 Recoil Reduction 4 Offensive Hacking 10 Defensive Hacking 10 Relay Coupler Types 2 Relay Coupler Value 61 Item Schematics ----------------- None Robot Schematics ------------------ None Fabricated ------------ Nothing Alien Tech Used ----------------- None Achievements -------------- None Challenges ------------ None Game ------ Seed SurveybotThrusterChainsword Manual? 0 Play Time 00:51:47 Cumulative 527.2 hours Start 2023.12.09 @ 14:20:43 End 2023.12.09 @ 16:23:39 Sessions 3 Manual Loads 0 Difficulty Rogue Special Mode None Game No. 587 Rogue 500 Adventurer 87 Explorer 0 Win Type - Total 29 Types 8/0/16/1/1/0/3/0/0 Lore% 92 Gallery% 93 Achievement% 78 Wizard Run 0 Options --------- ASCII 0 Keyboard 1 Movement Numpad Keybinds 0 Fullscreen 1 Font 18/SmallcapsGlow Map View 76x50 Tactical HUD 1 Map Filters NONE Filters NONE Steam 1 RUN: 787704aa-4355-442d-a0b8-898463c3017a